[Event "World Junior Chess Championship U20 2022"]
[White "Atanasov, Anthony"]
[Black "Salem, Muhsan Shuaib"]
[WhiteFideId "2623897"]
[BlackFideId "9325824"]
[WhiteElo "2148"]
[BlackElo "1227"]
[Result "1-0"]
[Round "02"]
[TimeControl "5400+30"]
[Date "2022.10.13"]
[WhiteClock "0:41:29"]
[BlackClock "0:26:57"]

1. d4 {[%clk 1:30:58]}  d5 {[%clk 1:30:51]} 2. Bf4 {[%clk 1:30:58]}  Nf6 {[%clk 1:31:10]} 3. e3 {[%clk 1:31:16]}  c5 {[%clk 1:31:02]} 4. Nf3 {[%clk 1:31:27]}  Bf5 {[%clk 1:30:03]} 5. Nbd2 {[%clk 1:31:10]}  e6 {[%clk 1:27:28]} 6. c3 {[%clk 1:29:50]}  Nbd7 {[%clk 1:23:34]} 7. Be2 {[%clk 1:20:50]}  Be7 {[%clk 1:18:56]} 8. Nh4 {[%clk 1:18:48]}  Be4 {[%clk 1:14:02]} 9. f3 {[%clk 1:13:46]}  Bg6 {[%clk 1:14:04]} 10. Nxg6 {[%clk 1:13:36]}  hxg6 {[%clk 1:14:24]} 11. Bg3 {[%clk 1:11:47]}  O-O {[%clk 1:05:26]} 12. O-O {[%clk 1:10:29]}  cxd4 {[%clk 1:02:28]} 13. cxd4 {[%clk 1:07:55]}  Rc8 {[%clk 0:58:33]} 14. Qb3 {[%clk 1:05:22]}  Qb6 {[%clk 0:52:42]} 15. Rac1 {[%clk 1:03:21]}  Bb4 {[%clk 0:48:40]} 16. Nb1 {[%clk 1:02:12]}  Ba5 {[%clk 0:35:22]} 17. Qa3 {[%clk 0:57:37]}  Bb4 {[%clk 0:30:14]} 18. Qa4 {[%clk 0:55:08]}  Qa5 {[%clk 0:25:23]} 19. Qb3 {[%clk 0:48:43]}  Qb6 {[%clk 0:19:25]} 20. Rfd1 {[%clk 0:46:35]}  Ba5 {[%clk 0:15:21]} 21. Qa3 {[%clk 0:46:33]}  Bb4 {[%clk 0:14:54]} 22. Qa4 {[%clk 0:46:04]}  Qa5 {[%clk 0:12:59]} 23. Qb3 {[%clk 0:46:08]}  Qb6 {[%clk 0:12:59]} 24. Kf1 {[%clk 0:39:03]}  Ba5 {[%clk 0:11:08]} 25. Qa3 {[%clk 0:39:16]}  Bb4 {[%clk 0:11:08]} 26. Qa4 {[%clk 0:39:29]}  Qa5 {[%clk 0:11:33]} 27. Qxa5 {[%clk 0:36:55]}  Bxa5 {[%clk 0:11:55]} 28. Bd6 {[%clk 0:37:16]}  Rfe8 {[%clk 0:11:09]} 29. b4 {[%clk 0:32:59]}  Bb6 {[%clk 0:09:44]} 30. a4 {[%clk 0:28:48]}  a6 {[%clk 0:08:45]} 31. a5 {[%clk 0:28:15]}  Ba7 {[%clk 0:09:08]} 32. b5 {[%clk 0:28:14]}  axb5 {[%clk 0:08:50]} 33. Bxb5 {[%clk 0:28:24]}  Bb8 {[%clk 0:07:26]} 34. Bxb8 {[%clk 0:28:17]}  Rxb8 {[%clk 0:07:49]} 35. g4 {[%clk 0:27:20]}  Red8 {[%clk 0:06:44]} 36. Rc7 {[%clk 0:27:25]}  Nf8 {[%clk 0:06:20]} 37. Rdc1 {[%clk 0:27:42]}  Ne8 {[%clk 0:05:22]} 38. Bxe8 {[%clk 0:26:39]}  Rxe8 {[%clk 0:05:44]} 39. Nc3 {[%clk 0:22:46]}  Rec8 {[%clk 0:05:18]} 40. Nxd5 {[%clk 0:22:02]}  Rxc7 {[%clk 0:04:43]} 41. Nxc7 {[%clk 0:22:29]}  Rc8 {[%clk 0:03:56]} 42. e4 {[%clk 0:20:36]}  Nd7 {[%clk 0:02:20]} 43. d5 {[%clk 0:14:51]}  exd5 {[%clk 0:02:38]} 44. exd5 {[%clk 0:15:20]}  Ne5 {[%clk 0:02:22]} 45. Ke2 {[%clk 0:14:05]}  Nc6 {[%clk 0:00:39]} 46. Rxc6 {[%clk 0:11:06]}  bxc6 {[%clk 0:26:57]} 47. d6 {[%clk 0:41:29]} 1-0


[Site "http://www.chessbomb.com"]

[Event "World Junior Chess Championship U20 2022"]
[White "Ahmed, Younes Alkhemeiri"]
[Black "Cotic, Borna"]
[WhiteFideId "9324585"]
[BlackFideId "14542307"]
[WhiteElo "1139"]
[BlackElo "2133"]
[Result "0-1"]
[Round "02"]
[TimeControl "5400+30"]
[Date "2022.10.13"]
[WhiteClock "0:48:11"]
[BlackClock "0:19:31"]

1. e4 {[%clk 1:30:59]}  c5 {[%clk 1:30:55]} 2. Nf3 {[%clk 1:31:24]}  e6 {[%clk 1:31:20]} 3. d4 {[%clk 1:31:49]}  cxd4 {[%clk 1:31:43]} 4. Nxd4 {[%clk 1:32:13]}  Nc6 {[%clk 1:32:08]} 5. Nxc6 {[%clk 1:32:13]}  bxc6 {[%clk 1:32:30]} 6. Bd3 {[%clk 1:32:47]}  Nf6 {[%clk 1:32:19]} 7. Nd2 {[%clk 1:32:34]}  d5 {[%clk 1:32:05]} 8. O-O {[%clk 1:32:34]}  Be7 {[%clk 1:32:18]} 9. b3 {[%clk 1:31:27]}  O-O {[%clk 1:29:55]} 10. Bb2 {[%clk 1:31:02]}  Qb6 {[%clk 1:25:06]} 11. Qe2 {[%clk 1:28:21]}  a5 {[%clk 1:23:54]} 12. c4 {[%clk 1:27:18]}  Ba6 {[%clk 1:15:54]} 13. a3 {[%clk 1:24:46]}  Rfd8 {[%clk 1:08:48]} 14. Rfd1 {[%clk 1:23:38]}  h6 {[%clk 0:54:10]} 15. h3 {[%clk 1:17:05]}  Rd7 {[%clk 0:48:15]} 16. Bc3 {[%clk 1:13:24]}  d4 {[%clk 0:39:37]} 17. Bb2 {[%clk 1:12:51]}  e5 {[%clk 0:36:33]} 18. Rab1 {[%clk 1:11:19]}  c5 {[%clk 0:36:30]} 19. Nf3 {[%clk 1:10:44]}  Qc7 {[%clk 0:35:10]} 20. Nh4 {[%clk 1:04:26]}  Rdd8 {[%clk 0:33:35]} 21. Nf5 {[%clk 1:03:27]}  Bc8 {[%clk 0:27:08]} 22. Nxe7+ {[%clk 1:03:28]}  Qxe7 {[%clk 0:27:32]} 23. Qf3 {[%clk 1:00:14]}  Nh7 {[%clk 0:23:49]} 24. Qg3 {[%clk 0:56:52]}  Ra6 {[%clk 0:22:36]} 25. f4 {[%clk 0:52:53]}  Rg6 {[%clk 0:22:12]} 26. Qf3 {[%clk 0:51:21]}  exf4 {[%clk 0:22:19]} 27. e5 {[%clk 0:51:17]}  Ng5 {[%clk 0:21:42]} 28. Qe2 {[%clk 0:49:10]}  Nxh3+ {[%clk 0:21:10]} 29. Kh2 {[%clk 0:49:21]}  Rg3 {[%clk 0:18:56]} 30. gxh3 {[%clk 0:48:22]}  Rxh3+ {[%clk 0:19:13]} 31. Kg1 {[%clk 0:48:11]}  Qg5+ {[%clk 0:19:31]} 0-1


[Site "http://www.chessbomb.com"]

[Event "World Junior Chess Championship U20 2022"]
[White "Stefansson, Vignir Vatnar"]
[Black "Esipenko, Andrey"]
[WhiteFideId "2308649"]
[BlackFideId "24175439"]
[WhiteElo "2471"]
[BlackElo "2668"]
[Result "1/2-1/2"]
[Round "03"]
[TimeControl "5400+30"]
[Date "2022.10.13"]
[WhiteClock "0:27:45"]
[BlackClock "0:36:49"]

1. Nf3 {[%clk 1:30:30]}  d5 {[%clk 1:29:17]} 2. d4 {[%clk 1:30:39]}  Nf6 {[%clk 1:29:31]} 3. c4 {[%clk 1:30:03]}  e6 {[%clk 1:29:55]} 4. Nc3 {[%clk 1:27:13]}  Bb4 {[%clk 1:29:55]} 5. e3 {[%clk 1:24:29]}  O-O {[%clk 1:30:01]} 6. Bd2 {[%clk 1:24:56]}  b6 {[%clk 1:30:14]} 7. cxd5 {[%clk 1:23:18]}  exd5 {[%clk 1:30:38]} 8. Bd3 {[%clk 1:23:10]}  Re8 {[%clk 1:30:25]} 9. O-O {[%clk 1:14:49]}  Bd6 {[%clk 1:29:27]} 10. Qc2 {[%clk 1:11:03]}  c5 {[%clk 1:29:33]} 11. b3 {[%clk 1:07:38]}  Nc6 {[%clk 1:26:46]} 12. dxc5 {[%clk 1:03:15]}  bxc5 {[%clk 1:26:08]} 13. a3 {[%clk 0:52:15]}  Bg4 {[%clk 1:21:30]} 14. Ne2 {[%clk 0:39:28]}  Bxf3 {[%clk 0:57:58]} 15. gxf3 {[%clk 0:39:52]}  Ne5 {[%clk 0:57:56]} 16. Kg2 {[%clk 0:38:58]}  Qd7 {[%clk 0:57:22]} 17. Ng3 {[%clk 0:35:09]}  Qb7 {[%clk 0:54:30]} 18. Rab1 {[%clk 0:32:59]}  Rad8 {[%clk 0:40:31]} 19. Rfd1 {[%clk 0:28:56]}  d4 {[%clk 0:37:43]} 20. e4 {[%clk 0:26:31]}  Nxd3 {[%clk 0:37:51]} 21. Qxd3 {[%clk 0:26:56]}  Nd7 {[%clk 0:38:11]} 22. f4 {[%clk 0:25:14]}  Nf8 {[%clk 0:32:21]} 23. f3 {[%clk 0:20:38]}  Ng6 {[%clk 0:31:23]} 24. e5 {[%clk 0:20:06]}  Bf8 {[%clk 0:31:26]} 25. Re1 {[%clk 0:18:03]}  Qd5 {[%clk 0:30:12]} 26. Kf2 {[%clk 0:17:14]}  Rb8 {[%clk 0:29:34]} 27. Qe4 {[%clk 0:14:52]}  Qd7 {[%clk 0:28:45]} 28. Qf5 {[%clk 0:15:10]}  Qd5 {[%clk 0:20:24]} 29. Qe4 {[%clk 0:14:55]}  Qd8 {[%clk 0:14:33]} 30. Nf5 {[%clk 0:14:23]}  Qd7 {[%clk 0:14:21]} 31. h4 {[%clk 0:10:40]}  h5 {[%clk 0:14:04]} 32. Ng3 {[%clk 0:07:43]}  a5 {[%clk 0:12:10]} 33. a4 {[%clk 0:06:44]}  c4 {[%clk 0:11:50]} 34. bxc4 {[%clk 0:06:39]}  Rxb1 {[%clk 0:12:01]} 35. Qxb1 {[%clk 0:05:55]}  Bb4 {[%clk 0:11:04]} 36. e6 {[%clk 0:04:49]}  Rxe6 {[%clk 0:10:34]} 37. Rxe6 {[%clk 0:05:07]}  Qxe6 {[%clk 0:09:36]} 38. f5 {[%clk 0:04:58]}  Qe8 {[%clk 0:09:45]} 39. fxg6 {[%clk 0:00:43]}  Bxd2 {[%clk 0:10:13]} 40. gxf7+ {[%clk 0:01:03]}  Qxf7 {[%clk 0:10:41]} 41. Qb5 {[%clk 0:27:45]}  d3 {[%clk 0:36:49]} 1/2-1/2


[Site "http://www.chessbomb.com"]

[Event "World Junior Chess Championship U20 2022"]
[White "Kosakowski, Jakub"]
[Black "Svane, Frederik"]
[WhiteFideId "1185080"]
[BlackFideId "12923044"]
[WhiteElo "2465"]
[BlackElo "2566"]
[Result "0-1"]
[Round "03"]
[TimeControl "5400+30"]
[Date "2022.10.13"]
[WhiteClock "0:22:24"]
[BlackClock "0:36:26"]

1. e4 {[%clk 1:30:57]}  e5 {[%clk 1:29:11]} 2. Nf3 {[%clk 1:30:58]}  Nc6 {[%clk 1:29:26]} 3. Bb5 {[%clk 1:31:08]}  a6 {[%clk 1:29:50]} 4. Ba4 {[%clk 1:31:25]}  Nf6 {[%clk 1:30:13]} 5. O-O {[%clk 1:31:41]}  Bc5 {[%clk 1:30:33]} 6. Bxc6 {[%clk 1:28:32]}  dxc6 {[%clk 1:30:54]} 7. d3 {[%clk 1:28:50]}  Nd7 {[%clk 1:28:01]} 8. Nbd2 {[%clk 1:27:00]}  O-O {[%clk 1:25:59]} 9. Nc4 {[%clk 1:25:30]}  Re8 {[%clk 1:25:21]} 10. Bg5 {[%clk 1:22:37]}  f6 {[%clk 1:24:34]} 11. Be3 {[%clk 1:21:59]}  Bf8 {[%clk 1:23:15]} 12. Na5 {[%clk 1:13:12]}  Nb8 {[%clk 1:17:34]} 13. c3 {[%clk 1:03:40]}  b6 {[%clk 1:16:45]} 14. Nc4 {[%clk 1:03:51]}  c5 {[%clk 1:10:07]} 15. a3 {[%clk 0:35:37]}  a5 {[%clk 0:59:17]} 16. d4 {[%clk 0:35:17]}  exd4 {[%clk 0:52:54]} 17. cxd4 {[%clk 0:35:38]}  cxd4 {[%clk 0:47:17]} 18. Nxd4 {[%clk 0:35:11]}  Rxe4 {[%clk 0:44:39]} 19. Qb3 {[%clk 0:24:31]}  Qd5 {[%clk 0:38:06]} 20. Rfd1 {[%clk 0:20:40]}  Bb7 {[%clk 0:22:51]} 21. f3 {[%clk 0:20:56]}  Re8 {[%clk 0:22:37]} 22. Nb5 {[%clk 0:17:03]}  Rxe3 {[%clk 0:19:01]} 23. Qxe3 {[%clk 0:17:14]}  Qxb5 {[%clk 0:13:36]} 24. Qe6+ {[%clk 0:12:13]}  Kh8 {[%clk 0:14:06]} 25. Rd8 {[%clk 0:12:17]}  Nc6 {[%clk 0:13:09]} 26. Rxa8 {[%clk 0:12:27]}  Bxa8 {[%clk 0:13:35]} 27. Qc8 {[%clk 0:09:21]}  Qxc4 {[%clk 0:12:35]} 28. Qxf8+ {[%clk 0:09:30]}  Qg8 {[%clk 0:13:01]} 29. Qxg8+ {[%clk 0:09:55]}  Kxg8 {[%clk 0:13:27]} 30. Rd1 {[%clk 0:10:20]}  Kf7 {[%clk 0:12:36]} 31. Rd7+ {[%clk 0:10:41]}  Ne7 {[%clk 0:12:59]} 32. Rxc7 {[%clk 0:11:05]}  Ke6 {[%clk 0:12:05]} 33. b4 {[%clk 0:09:33]}  axb4 {[%clk 0:11:41]} 34. axb4 {[%clk 0:10:01]}  Kd6 {[%clk 0:11:18]} 35. Ra7 {[%clk 0:10:17]}  Bc6 {[%clk 0:10:59]} 36. Kf2 {[%clk 0:10:09]}  g5 {[%clk 0:08:48]} 37. Ke3 {[%clk 0:05:00]}  h5 {[%clk 0:08:16]} 38. Kd2 {[%clk 0:00:32]}  Nd5 {[%clk 0:07:51]} 39. Rh7 {[%clk 0:00:39]}  h4 {[%clk 0:07:43]} 40. Rh6 {[%clk 0:00:41]}  Ke5 {[%clk 0:05:08]} 41. g3 {[%clk 0:24:55]}  hxg3 {[%clk 0:35:28]} 42. hxg3 {[%clk 0:25:23]}  Nxb4 {[%clk 0:35:44]} 43. f4+ {[%clk 0:25:20]}  gxf4 {[%clk 0:36:09]} 44. Rh5+ {[%clk 0:25:04]}  Ke4 {[%clk 0:35:16]} 45. gxf4 {[%clk 0:24:33]}  Nd5 {[%clk 0:35:38]} 46. Rh8 {[%clk 0:24:25]}  Bb5 {[%clk 0:35:58]} 47. Rh5 {[%clk 0:21:42]}  Bc4 {[%clk 0:35:33]} 48. f5 {[%clk 0:22:10]}  b5 {[%clk 0:35:59]} 49. Kc2 {[%clk 0:22:24]}  Kf4 {[%clk 0:36:26]} 0-1


[Site "http://www.chessbomb.com"]

[Event "World Junior Chess Championship U20 2022"]
[White "Stoyanov, Tsvetan"]
[Black "Murzin, Volodar"]
[WhiteFideId "2917173"]
[BlackFideId "44155573"]
[WhiteElo "2449"]
[BlackElo "2557"]
[Result "1/2-1/2"]
[Round "03"]
[TimeControl "5400+30"]
[Date "2022.10.13"]
[WhiteClock "0:22:38"]
[BlackClock "0:18:37"]

1. c4 {[%clk 1:30:57]}  c6 {[%clk 1:27:25]} 2. Nf3 {[%clk 1:31:08]}  d5 {[%clk 1:27:47]} 3. e3 {[%clk 1:31:08]}  Nf6 {[%clk 1:28:07]} 4. Nc3 {[%clk 1:31:17]}  e6 {[%clk 1:27:43]} 5. b3 {[%clk 1:31:13]}  Bd6 {[%clk 1:26:51]} 6. Bb2 {[%clk 1:31:26]}  e5 {[%clk 1:19:39]} 7. cxd5 {[%clk 1:28:35]}  cxd5 {[%clk 1:20:00]} 8. Nb5 {[%clk 1:26:57]}  Nc6 {[%clk 1:20:22]} 9. Nxd6+ {[%clk 1:22:31]}  Qxd6 {[%clk 1:20:43]} 10. Bb5 {[%clk 1:22:26]}  e4 {[%clk 1:15:25]} 11. Ne5 {[%clk 1:21:31]}  O-O {[%clk 1:15:11]} 12. Bxc6 {[%clk 1:18:32]}  bxc6 {[%clk 1:15:02]} 13. Rc1 {[%clk 1:16:34]}  Bb7 {[%clk 1:02:38]} 14. Qc2 {[%clk 1:04:46]}  Nd7 {[%clk 0:52:53]} 15. Qc3 {[%clk 0:53:57]}  f6 {[%clk 0:39:03]} 16. Nxd7 {[%clk 0:54:10]}  Qxd7 {[%clk 0:39:31]} 17. d3 {[%clk 0:52:42]}  exd3 {[%clk 0:37:55]} 18. Qxd3 {[%clk 0:49:12]}  a5 {[%clk 0:38:08]} 19. Qc3 {[%clk 0:42:19]}  Ba6 {[%clk 0:29:04]} 20. f3 {[%clk 0:40:57]}  Rfc8 {[%clk 0:28:57]} 21. Kf2 {[%clk 0:39:19]}  c5 {[%clk 0:26:22]} 22. Rhd1 {[%clk 0:38:06]}  a4 {[%clk 0:22:24]} 23. Qd2 {[%clk 0:31:17]}  axb3 {[%clk 0:21:28]} 24. axb3 {[%clk 0:31:42]}  Bb7 {[%clk 0:21:53]} 25. Bc3 {[%clk 0:25:44]}  Qb5 {[%clk 0:17:10]} 26. b4 {[%clk 0:24:25]}  cxb4 {[%clk 0:16:50]} 27. Bxb4 {[%clk 0:24:51]}  Rxc1 {[%clk 0:17:04]} 28. Rxc1 {[%clk 0:25:19]}  Rc8 {[%clk 0:17:22]} 29. Rxc8+ {[%clk 0:24:07]}  Bxc8 {[%clk 0:17:41]} 30. Qc3 {[%clk 0:21:31]}  Qc4 {[%clk 0:17:49]} 31. Qxc4 {[%clk 0:21:33]}  dxc4 {[%clk 0:18:17]} 32. e4 {[%clk 0:22:02]}  f5 {[%clk 0:18:13]} 33. exf5 {[%clk 0:22:12]}  Bxf5 {[%clk 0:18:37]} 34. Ke3 {[%clk 0:22:38]} 1/2-1/2


[Site "http://www.chessbomb.com"]

[Event "World Junior Chess Championship U20 2022"]
[White "Ghimpu, Samuel-Timotei"]
[Black "Sonis, Francesco"]
[WhiteFideId "1238175"]
[BlackFideId "895733"]
[WhiteElo "2434"]
[BlackElo "2531"]
[Result "1/2-1/2"]
[Round "03"]
[TimeControl "5400+30"]
[Date "2022.10.13"]
[WhiteClock "0:02:46"]
[BlackClock "0:07:12"]

1. d4 {[%clk 1:28:12]}  Nf6 {[%clk 1:30:50]} 2. c4 {[%clk 1:28:16]}  e6 {[%clk 1:31:14]} 3. Nc3 {[%clk 1:24:02]}  Bb4 {[%clk 1:31:37]} 4. Qc2 {[%clk 1:22:30]}  d5 {[%clk 1:31:50]} 5. a3 {[%clk 1:22:38]}  Bxc3+ {[%clk 1:29:50]} 6. Qxc3 {[%clk 1:22:38]}  O-O {[%clk 1:29:39]} 7. e3 {[%clk 1:22:52]}  b6 {[%clk 1:19:57]} 8. Nf3 {[%clk 1:20:48]}  a5 {[%clk 1:15:50]} 9. b3 {[%clk 1:20:11]}  Nbd7 {[%clk 1:13:20]} 10. Be2 {[%clk 1:17:51]}  Bb7 {[%clk 1:12:07]} 11. O-O {[%clk 1:18:02]}  c5 {[%clk 1:02:22]} 12. Rd1 {[%clk 1:12:59]}  Rc8 {[%clk 0:56:00]} 13. a4 {[%clk 1:09:26]}  Qc7 {[%clk 0:48:19]} 14. Ba3 {[%clk 1:09:26]}  Rfd8 {[%clk 0:48:35]} 15. Rac1 {[%clk 1:05:59]}  Qb8 {[%clk 0:46:29]} 16. Bb2 {[%clk 0:52:26]}  dxc4 {[%clk 0:38:33]} 17. bxc4 {[%clk 0:50:11]}  cxd4 {[%clk 0:36:56]} 18. exd4 {[%clk 0:37:50]}  Nd5 {[%clk 0:36:14]} 19. Qb3 {[%clk 0:37:41]}  Nf4 {[%clk 0:33:20]} 20. Bf1 {[%clk 0:36:37]}  Qa8 {[%clk 0:31:11]} 21. Nh4 {[%clk 0:35:25]}  Ng6 {[%clk 0:26:53]} 22. Nxg6 {[%clk 0:26:11]}  hxg6 {[%clk 0:27:21]} 23. Qg3 {[%clk 0:25:09]}  Nf6 {[%clk 0:24:24]} 24. Qh4 {[%clk 0:22:29]}  Be4 {[%clk 0:19:26]} 25. Re1 {[%clk 0:20:39]}  Bf5 {[%clk 0:18:21]} 26. Re5 {[%clk 0:13:22]}  Qc6 {[%clk 0:16:23]} 27. Rb5 {[%clk 0:11:22]}  Ne4 {[%clk 0:13:02]} 28. f3 {[%clk 0:10:14]}  g5 {[%clk 0:11:57]} 29. Qe1 {[%clk 0:10:09]}  Nd6 {[%clk 0:11:44]} 30. d5 {[%clk 0:08:31]}  Qc7 {[%clk 0:08:52]} 31. Rb3 {[%clk 0:05:10]}  Qc5+ {[%clk 0:08:49]} 32. Qf2 {[%clk 0:04:39]}  Qxf2+ {[%clk 0:08:37]} 33. Kxf2 {[%clk 0:05:07]}  exd5 {[%clk 0:07:51]} 34. cxd5 {[%clk 0:05:11]}  Rxc1 {[%clk 0:08:07]} 35. Bxc1 {[%clk 0:05:39]}  Nc8 {[%clk 0:08:36]} 36. Bxg5 {[%clk 0:04:58]}  Rxd5 {[%clk 0:08:58]} 37. Be3 {[%clk 0:05:21]}  Bd7 {[%clk 0:08:30]} 38. Rc3 {[%clk 0:04:33]}  Nd6 {[%clk 0:08:04]} 39. Ra3 {[%clk 0:03:53]}  Nc8 {[%clk 0:06:47]} 40. Ba6 {[%clk 0:02:46]}  Rd6 {[%clk 0:07:12]} 1/2-1/2


[Site "http://www.chessbomb.com"]

[Event "World Junior Chess Championship U20 2022"]
[White "Sokolovsky, Yahli"]
[Black "Batsuren, Dambasuren"]
[WhiteFideId "2820242"]
[BlackFideId "4902920"]
[WhiteElo "2416"]
[BlackElo "2522"]
[Result "1/2-1/2"]
[Round "03"]
[TimeControl "5400+30"]
[Date "2022.10.13"]
[WhiteClock "0:14:54"]
[BlackClock "0:11:54"]

1. e4 {[%clk 1:30:27]}  c6 {[%clk 1:30:51]} 2. Nf3 {[%clk 1:30:53]}  d5 {[%clk 1:31:15]} 3. Nc3 {[%clk 1:31:18]}  dxe4 {[%clk 1:31:16]} 4. Nxe4 {[%clk 1:31:44]}  Nf6 {[%clk 1:31:39]} 5. Qe2 {[%clk 1:31:52]}  Nxe4 {[%clk 1:31:34]} 6. Qxe4 {[%clk 1:32:18]}  Nd7 {[%clk 1:31:55]} 7. d4 {[%clk 1:32:34]}  Nf6 {[%clk 1:31:09]} 8. Qe3 {[%clk 1:28:02]}  Bf5 {[%clk 1:29:16]} 9. Qb3 {[%clk 1:25:35]}  Qc7 {[%clk 1:21:31]} 10. Be2 {[%clk 1:15:54]}  e6 {[%clk 1:18:52]} 11. Ne5 {[%clk 1:12:59]}  Bd6 {[%clk 1:16:13]} 12. Nc4 {[%clk 1:12:13]}  Be7 {[%clk 1:16:02]} 13. Bg5 {[%clk 1:07:02]}  O-O {[%clk 1:14:56]} 14. O-O {[%clk 1:00:51]}  Rad8 {[%clk 1:13:43]} 15. Rad1 {[%clk 0:59:54]}  Nd5 {[%clk 0:55:57]} 16. Bxe7 {[%clk 0:57:52]}  Qxe7 {[%clk 0:56:16]} 17. Bf3 {[%clk 0:53:59]}  Nf6 {[%clk 0:46:35]} 18. Rfe1 {[%clk 0:52:35]}  Bg4 {[%clk 0:46:17]} 19. Bxg4 {[%clk 0:50:34]}  Nxg4 {[%clk 0:46:41]} 20. h3 {[%clk 0:46:49]}  Nf6 {[%clk 0:46:52]} 21. Rd3 {[%clk 0:44:44]}  Nd5 {[%clk 0:42:42]} 22. Red1 {[%clk 0:41:48]}  h5 {[%clk 0:40:03]} 23. R3d2 {[%clk 0:39:34]}  Qb4 {[%clk 0:33:21]} 24. Ne5 {[%clk 0:37:03]}  Qxb3 {[%clk 0:30:20]} 25. axb3 {[%clk 0:37:30]}  Ne7 {[%clk 0:27:42]} 26. Ra1 {[%clk 0:32:30]}  a6 {[%clk 0:26:57]} 27. Ra5 {[%clk 0:32:21]}  Rd5 {[%clk 0:21:41]} 28. Rxd5 {[%clk 0:32:45]}  cxd5 {[%clk 0:20:10]} 29. c3 {[%clk 0:25:13]}  Nf5 {[%clk 0:19:47]} 30. Rd1 {[%clk 0:23:58]}  Nd6 {[%clk 0:18:53]} 31. Ra1 {[%clk 0:22:55]}  Rc8 {[%clk 0:17:28]} 32. Kf1 {[%clk 0:22:35]}  Kf8 {[%clk 0:15:28]} 33. Ra5 {[%clk 0:21:42]}  Ke7 {[%clk 0:15:17]} 34. Ke2 {[%clk 0:22:03]}  g5 {[%clk 0:13:20]} 35. Ra1 {[%clk 0:19:56]}  Rg8 {[%clk 0:11:54]} 36. Rh1 {[%clk 0:14:54]} 1/2-1/2


[Site "http://www.chessbomb.com"]

[Event "World Junior Chess Championship U20 2022"]
[White "Barseghyan, Armen Ar."]
[Black "Kozak, Adam"]
[WhiteFideId "13306707"]
[BlackFideId "753246"]
[WhiteElo "2402"]
[BlackElo "2516"]
[Result "0-1"]
[Round "03"]
[TimeControl "5400+30"]
[Date "2022.10.13"]
[WhiteClock "0:01:02"]
[BlackClock "0:06:48"]

1. d4 {[%clk 1:28:13]}  Nf6 {[%clk 1:30:16]} 2. c4 {[%clk 1:28:09]}  e6 {[%clk 1:30:24]} 3. Nf3 {[%clk 1:28:20]}  d5 {[%clk 1:30:16]} 4. Nc3 {[%clk 1:27:56]}  c6 {[%clk 1:30:05]} 5. Bg5 {[%clk 1:27:48]}  h6 {[%clk 1:30:15]} 6. Bxf6 {[%clk 1:28:03]}  Qxf6 {[%clk 1:30:38]} 7. e3 {[%clk 1:28:03]}  Nd7 {[%clk 1:30:59]} 8. Bd3 {[%clk 1:25:29]}  dxc4 {[%clk 1:31:02]} 9. Bxc4 {[%clk 1:25:54]}  g6 {[%clk 1:31:20]} 10. O-O {[%clk 1:26:13]}  Bg7 {[%clk 1:31:43]} 11. Re1 {[%clk 1:26:23]}  O-O {[%clk 1:31:47]} 12. e4 {[%clk 1:26:40]}  b5 {[%clk 1:31:24]} 13. e5 {[%clk 1:23:30]}  Qe7 {[%clk 1:31:26]} 14. Bf1 {[%clk 0:56:28]}  Rd8 {[%clk 0:48:59]} 15. Qb3 {[%clk 0:53:57]}  Bb7 {[%clk 0:44:44]} 16. Rac1 {[%clk 0:52:55]}  c5 {[%clk 0:40:33]} 17. Nxb5 {[%clk 0:52:00]}  a6 {[%clk 0:28:36]} 18. Nc7 {[%clk 0:27:30]}  Rab8 {[%clk 0:27:30]} 19. Qa3 {[%clk 0:25:52]}  Bxf3 {[%clk 0:12:33]} 20. Nxa6 {[%clk 0:14:48]}  Bd5 {[%clk 0:12:20]} 21. Nxb8 {[%clk 0:11:26]}  Rxb8 {[%clk 0:12:48]} 22. dxc5 {[%clk 0:10:46]}  Nxe5 {[%clk 0:13:08]} 23. Qg3 {[%clk 0:06:13]}  Qc7 {[%clk 0:10:46]} 24. b3 {[%clk 0:06:05]}  Rb4 {[%clk 0:10:39]} 25. h3 {[%clk 0:05:39]}  g5 {[%clk 0:09:10]} 26. Re3 {[%clk 0:01:09]}  Rf4 {[%clk 0:08:17]} 27. a3 {[%clk 0:01:07]}  Ng6 {[%clk 0:06:14]} 28. b4 {[%clk 0:00:36]}  Bd4 {[%clk 0:06:42]} 29. Re2 {[%clk 0:00:37]}  Rxf2 {[%clk 0:06:04]} 30. Qxf2 {[%clk 0:00:33]}  Bxf2+ {[%clk 0:06:31]} 31. Rxf2 {[%clk 0:01:00]}  Qg3 {[%clk 0:06:26]} 32. Rfc2 {[%clk 0:00:34]}  Nf4 {[%clk 0:06:23]} 33. Rc3 {[%clk 0:01:02]}  Ne2+ {[%clk 0:06:48]} 0-1


[Site "http://www.chessbomb.com"]

[Event "World Junior Chess Championship U20 2022"]
[White "Mladek, Richard"]
[Black "Kacharava, Nikolozi"]
[WhiteFideId "386588"]
[BlackFideId "13611860"]
[WhiteElo "2371"]
[BlackElo "2512"]
[Result "0-1"]
[Round "03"]
[TimeControl "5400+30"]
[Date "2022.10.13"]
[WhiteClock "0:14:16"]
[BlackClock "0:15:37"]

1. d4 {[%clk 1:30:59]}  d5 {[%clk 1:30:23]} 2. c4 {[%clk 1:31:23]}  e6 {[%clk 1:30:21]} 3. Nf3 {[%clk 1:31:42]}  Nf6 {[%clk 1:30:21]} 4. Nc3 {[%clk 1:31:59]}  c6 {[%clk 1:30:16]} 5. e3 {[%clk 1:32:19]}  Nbd7 {[%clk 1:29:40]} 6. Be2 {[%clk 1:32:41]}  Bd6 {[%clk 1:29:08]} 7. O-O {[%clk 1:33:02]}  O-O {[%clk 1:29:02]} 8. b3 {[%clk 1:33:16]}  b6 {[%clk 1:28:03]} 9. Bb2 {[%clk 1:32:50]}  Bb7 {[%clk 1:27:51]} 10. Bd3 {[%clk 1:33:13]}  Qe7 {[%clk 1:24:01]} 11. Re1 {[%clk 1:30:46]}  c5 {[%clk 1:15:51]} 12. cxd5 {[%clk 1:29:20]}  exd5 {[%clk 1:14:02]} 13. Nb5 {[%clk 1:21:36]}  Bb8 {[%clk 1:12:59]} 14. dxc5 {[%clk 1:15:24]}  bxc5 {[%clk 1:11:55]} 15. Ba3 {[%clk 1:14:20]}  Ne4 {[%clk 1:07:46]} 16. Rc1 {[%clk 1:13:13]}  f5 {[%clk 1:04:21]} 17. Nc3 {[%clk 1:09:00]}  a6 {[%clk 0:56:31]} 18. Bf1 {[%clk 1:06:14]}  Ndf6 {[%clk 0:53:52]} 19. Nxe4 {[%clk 1:00:51]}  Nxe4 {[%clk 0:52:43]} 20. g3 {[%clk 0:54:54]}  Bc7 {[%clk 0:48:14]} 21. Re2 {[%clk 0:51:45]}  Rad8 {[%clk 0:42:07]} 22. Qd4 {[%clk 0:45:32]}  Bb6 {[%clk 0:38:24]} 23. Qa4 {[%clk 0:37:21]}  a5 {[%clk 0:28:03]} 24. Rec2 {[%clk 0:36:28]}  Qe6 {[%clk 0:20:08]} 25. Nd2 {[%clk 0:27:23]}  Nxf2 {[%clk 0:17:08]} 26. Kxf2 {[%clk 0:20:18]}  f4 {[%clk 0:16:44]} 27. gxf4 {[%clk 0:14:16]}  c4 {[%clk 0:15:37]} 0-1


[Site "http://www.chessbomb.com"]